fUST/lending_fUST_20250130
["ID","MTS","AMOUNT","RATE_DAILY","PERIOD"]
[350936520,1738222233940,-500.0,0.00016438,2]
[350936521,1738222233950,-500.0,0.00016438,2]
[350936522,1738222233960,-500.0,0.00016438,2]
[350936523,1738222233970,-690.55,0.00016438,2]
[350936524,1738222233980,-500.0,0.00016438,2]
[350936525,1738222233990,-567.33,0.00016438,2]
[350936526,1738222234000,-500.0,0.00016438,2]
[350936527,1738222234010,-5111.8,0.00016438,2]
[350936528,1738222234020,-12633.25,0.00016438,2]
[350936529,1738222234030,-1087.4,0.00016438,2]
[350936530,1738222234039,-579.3160166,0.00016438,2]
[350936531,1738222234049,-755.42,0.00016438,2]
[350936532,1738222234058,-500.0,0.00016438,2]
[350936533,1738222234068,-1623.35,0.00016438,2]
[350936534,1738222234078,-547.66,0.00016438,2]
[350936535,1738222234088,-500.0,0.00016438,2]
[350936536,1738222234098,-1356.65,0.00016438,2]
[350936537,1738222234108,-500.0,0.00016438,2]
[350936538,1738222234118,-799.88,0.00016438,2]
[350936539,1738222234127,-1298.65,0.00016438,2]
[350936540,1738222234137,-672.13,0.00016438,2]
[350936541,1738222234148,-658.78,0.00016438,2]
[350936542,1738222234158,-578.59,0.00016438,2]
[350936543,1738222234168,-500.0,0.00016438,2]
[350936544,1738222234177,-673.96,0.00016438,2]
[350936545,1738222234187,-500.0,0.00016574,2]
[350936546,1738222234196,-500.0,0.00016574,2]
[350936547,1738222234206,-500.0,0.00016574,2]
[350936548,1738222234216,-500.0,0.00016574,2]
[350936549,1738222234226,-459.08916354,0.00016574,2]
[350936550,1738222234237,-500.0,0.00016574,2]
[350936551,1738222234247,-500.0,0.00016574,2]
[350936552,1738222234256,-500.0,0.00016574,2]
[350936553,1738222234267,-500.0,0.00016574,2]
[350936554,1738222234276,-550.51376663,0.00016574,2]
[350936555,1738222234286,-500.0,0.00016575,2]
[350936556,1738222234295,-151.0,0.00016575,2]
[350936557,1738222234305,-246.773,0.00016575,2]
[350936558,1738222234315,-500.0,0.00016575,2]
[350936559,1738222234325,-500.0,0.00016575,2]
[350936560,1738222234334,-500.0,0.00016575,2]
[350936561,1738222234344,-500.0,0.00016575,2]
[350936562,1738222234354,-500.0,0.00016575,2]
[350936563,1738222234364,-829.68,0.00016575,2]
[350936564,1738222234374,-151.0,0.00016575,2]
[350936565,1738222234386,-151.0,0.00016575,2]
[350936566,1738222234395,-500.0,0.00016575,2]
[350936567,1738222234405,-1920.82,0.00016575,2]
[350936568,1738222234415,-151.0,0.00016575,2]
[350936569,1738222234424,-3044.26,0.00016575,2]
[350936570,1738222234435,-1502.47,0.00016575,2]
[350936571,1738222234445,-3886.12,0.00016575,2]
[350936572,1738222234455,-500.0,0.00016575,2]
[350936573,1738222234465,-823.69,0.00016575,2]
[350936574,1738222234476,-1125.0,0.00016575,2]
[350936575,1738222234486,-151.0,0.00016575,2]
[350936576,1738222234496,-913.31,0.00016575,2]
[350936577,1738222234506,-151.0,0.00016575,2]
[350936578,1738222234516,-723.75,0.00016575,2]
[350936579,1738222234525,-500.0,0.00016575,2]
[350936580,1738222234536,-500.0,0.00016575,2]
[350936581,1738222234545,-500.0,0.00016575,2]
[350936582,1738222234555,-500.0,0.00016575,2]
[350936583,1738222234565,-690.55,0.00016575,2]
[350936584,1738222234575,-500.0,0.00016575,2]
[350936585,1738222234584,-567.33,0.00016575,2]
[350936586,1738222234593,-500.0,0.00016575,2]
[350936587,1738222234602,-5111.8,0.00016575,2]
[350936588,1738222234612,-12633.25,0.00016575,2]
[350936589,1738222234621,-1087.4,0.00016575,2]
[350936590,1738222234632,-755.42,0.00016575,2]
[350936591,1738222234642,-500.0,0.00016575,2]
[350936592,1738222234652,-1623.35,0.00016575,2]
[350936593,1738222234662,-547.66,0.00016575,2]
[350936594,1738222234673,-500.0,0.00016575,2]
[350936595,1738222234685,-1356.65,0.00016575,2]
[350936596,1738222234695,-500.0,0.00016575,2]
[350936597,1738222234704,-799.88,0.00016575,2]
[350936598,1738222234714,-151.0,0.00016575,2]
[350936599,1738222234724,-1298.65,0.00016575,2]
[350936600,1738222234734,-672.13,0.00016575,2]
[350936601,1738222234743,-658.78,0.00016575,2]
[350936602,1738222234764,-578.59,0.00016575,2]
[350936603,1738222234775,-500.0,0.00016575,2]
[350936604,1738222234785,-673.96,0.00016575,2]
[350936605,1738222234795,-856.52,0.000166,2]
[350936606,1738222234805,-395.0,0.00016696,2]
[350936607,1738222234815,-500.0,0.00016712,2]
[350936608,1738222234825,-151.0,0.00016712,2]
[350936609,1738222234834,-151.0,0.00016712,2]
[350936610,1738222234844,-151.0,0.00016712,2]
[350936611,1738222234854,-154.904731,0.00016712,2]
[350936612,1738222234864,-151.0,0.00016712,2]
[350936613,1738222234874,-151.0,0.00016712,2]
[350936614,1738222234886,-387.75734851,0.00016712,2]
[350936615,1738222234895,-500.0,0.00016712,2]
[350936616,1738222234905,-500.0,0.00016712,2]
[350936617,1738222234915,-500.0,0.00016712,2]
[350936618,1738222234925,-500.0,0.00016712,2]
[350936619,1738222234935,-829.68,0.00016712,2]
[350936620,1738222234945,-152.079119,0.00016712,2]
[350936621,1738222234955,-151.0,0.00016712,2]
[350936622,1738222234964,-151.0,0.00016712,2]
[350936623,1738222234975,-500.0,0.00016712,2]
[350936624,1738222234984,-1920.82,0.00016712,2]
[350936625,1738222234994,-3044.26,0.00016712,2]
[350936626,1738222235004,-1502.47,0.00016712,2]
[350936627,1738222235013,-1928.14432928,0.00016712,2]
[350936628,1738222235029,-1957.97567072,0.00016712,2]
[350936629,1738222235039,-500.0,0.00016712,2]
[350936630,1738222235049,-823.69,0.00016712,2]
[350936631,1738222235059,-1125.0,0.00016712,2]
[350936632,1738222235069,-151.0,0.00016712,2]
[350936633,1738222235079,-913.31,0.00016712,2]
[350936634,1738222235089,-151.0,0.00016712,2]
[350936635,1738222235099,-151.0,0.00016712,2]
[350936636,1738222235108,-151.0,0.00016712,2]
[350936637,1738222235118,-723.75,0.00016712,2]
[350936638,1738222235127,-500.0,0.00016712,2]
[350936639,1738222235137,-500.0,0.00016712,2]
[350936640,1738222235147,-500.0,0.00016712,2]
[350936641,1738222235156,-500.0,0.00016712,2]
[350936642,1738222235167,-690.55,0.00016712,2]
[350936643,1738222235177,-500.0,0.00016712,2]
[350936644,1738222235186,-567.33,0.00016712,2]
[350936645,1738222235196,-500.0,0.00016712,2]
[350936646,1738222235206,-5111.8,0.00016712,2]
[350936647,1738222235216,-12633.25,0.00016712,2]
[350936648,1738222235226,-1087.4,0.00016712,2]
[350936649,1738222235236,-755.42,0.00016712,2]
[350936650,1738222235246,-500.0,0.00016712,2]
[350936651,1738222235255,-1623.35,0.00016712,2]
[350936652,1738222235265,-547.66,0.00016712,2]
[350936653,1738222235275,-500.0,0.00016712,2]
[350936654,1738222235285,-1356.65,0.00016712,2]
[350936655,1738222235295,-500.0,0.00016712,2]
[350936656,1738222235305,-799.88,0.00016712,2]
[350936657,1738222235315,-151.0,0.00016712,2]
[350936658,1738222235325,-151.0,0.00016712,2]
[350936659,1738222235335,-1298.65,0.00016712,2]
[350936660,1738222235344,-672.13,0.00016712,2]
[350936661,1738222235355,-658.78,0.00016712,2]
[350936662,1738222235365,-578.59,0.00016712,2]
[350936663,1738222235374,-500.0,0.00016712,2]
[350936664,1738222235385,-673.96,0.00016712,2]
[350936665,1738222235395,-3820.45671971,0.000168,2]
[350936666,1738222235405,-500.0,0.00016848,2]
[350936667,1738222235415,-446.78398553,0.00016848,2]
[350936668,1738222235424,-500.0,0.00016849,2]
[350936669,1738222235434,-151.0,0.00016849,2]
[350936670,1738222235444,-155.030831,0.00016849,2]
[350936671,1738222235454,-151.0,0.00016849,2]
[350936672,1738222235464,-151.0,0.00016849,2]
[350936673,1738222235473,-151.0,0.00016849,2]
[350936674,1738222235483,-500.0,0.00016849,2]
[350936675,1738222235493,-500.0,0.00016849,2]
[350936676,1738222235503,-500.0,0.00016849,2]
[350936677,1738222235512,-500.0,0.00016849,2]
[350936678,1738222235522,-829.68,0.00016849,2]
[350936679,1738222235531,-500.0,0.00016849,2]
[350936680,1738222235542,-1920.82,0.00016849,2]
[350936681,1738222235551,-3044.26,0.00016849,2]
[350936682,1738222235561,-1502.47,0.00016849,2]
[350936683,1738222235571,-3886.12,0.00016849,2]
[350936684,1738222235581,-500.0,0.00016849,2]
[350936685,1738222235590,-823.69,0.00016849,2]
[350936686,1738222235599,-1125.0,0.00016849,2]
[350936687,1738222235609,-913.31,0.00016849,2]
[350936688,1738222235619,-151.0,0.00016849,2]
[350936689,1738222235629,-151.0,0.00016849,2]
[350936690,1738222235638,-151.0,0.00016849,2]
[350936691,1738222235648,-723.75,0.00016849,2]
[350936692,1738222235657,-500.0,0.00016849,2]
[350936693,1738222235668,-500.0,0.00016849,2]
[350936694,1738222235681,-500.0,0.00016849,2]
[350936695,1738222235690,-500.0,0.00016849,2]
[350936696,1738222235700,-690.55,0.00016849,2]
[350936697,1738222235710,-500.0,0.00016849,2]
[350936698,1738222235721,-567.33,0.00016849,2]
[350936699,1738222235732,-500.0,0.00016849,2]
[350936700,1738222235741,-5111.8,0.00016849,2]
[350936701,1738222235751,-12633.25,0.00016849,2]
[350936702,1738222235762,-1087.4,0.00016849,2]
[350936703,1738222235772,-755.42,0.00016849,2]
[350936704,1738222235782,-500.0,0.00016849,2]
[350936705,1738222235792,-1623.35,0.00016849,2]
[350936706,1738222235802,-547.66,0.00016849,2]
[350936707,1738222235943,-500.0,0.00016849,2]
[350936708,1738222235953,-1356.65,0.00016849,2]
[350936709,1738222235963,-500.0,0.00016849,2]
[350936710,1738222235973,-799.88,0.00016849,2]
[350936711,1738222235983,-151.0,0.00016849,2]
[350936712,1738222235992,-151.0,0.00016849,2]
[350936713,1738222236002,-1298.65,0.00016849,2]
[350936714,1738222236011,-672.13,0.00016849,2]
[350936715,1738222236021,-658.78,0.00016849,2]
[350936716,1738222236031,-578.59,0.00016849,2]
[350936717,1738222236040,-500.0,0.00016849,2]
[350936718,1738222236050,-673.96,0.00016849,2]
[350936719,1738222236059,-500.0,0.00016906,2]
[350936720,1738222236069,-1200.0,0.00016937,2]
[350936721,1738222236079,-805.48167833,0.0001694,2]
[350936722,1738222236091,-406.271099,0.0001694,2]
[350936723,1738222236107,-3617.79148213,0.0001694,2]
[350936743,1738222238557,-735.50365646,0.0001694,2]
[350936806,1738222245162,-658.0000098,0.0001694,2]
[350936807,1738222245196,-1592.59558321,0.0001694,2]
[350936826,1738222246658,-3194.38318717,0.0001694,2]
[350936827,1738222246667,-1200.0,0.0001694,2]
[350936828,1738222246677,-172.65,0.00016978,2]
[350936829,1738222246688,-97.96679783,0.00016986,2]
[350936830,1738222246700,-53.03320217,0.00016986,2]
[350936831,1738222246709,-151.0,0.00016986,2]
[350936832,1738222246719,-500.0,0.00016986,2]
[350936833,1738222246728,-151.0,0.00016986,2]
[350936834,1738222246737,-151.0,0.00016986,2]
[350936835,1738222246746,-500.0,0.00016986,2]
[350936836,1738222246755,-500.0,0.00016986,2]
[350936837,1738222246764,-500.0,0.00016986,2]
[350936838,1738222246774,-500.0,0.00016986,2]
[350936839,1738222246783,-512.01415444,0.00016986,2]
[350936841,1738222340154,192.0,0.0002,120]
[350936843,1738222486914,500.0,0.00014166,2]
[350936844,1738222549646,268.097372,0.00013973,2]
[350936904,1738223433086,-3633.3312761,0.00015615,2]
[350936906,1738223433097,-724.70709503,0.0001604,2]
[350936909,1738223433110,-163.489,0.0001614,2]
[350936910,1738223433120,-300.0,0.00016437,2]
[350936912,1738223433129,-506.58122246,0.00016438,2]
[350936913,1738223433139,-500.0,0.00016438,2]
[350936915,1738223433148,-500.0,0.00016438,2]
[350936917,1738223433158,-500.0,0.00016438,2]
[350936919,1738223433168,-501.98350979,0.00016438,2]
[350936921,1738223433177,-364.75040147,0.00016438,2]
[350936922,1738223433187,-2368.31,0.00016438,2]
[350936923,1738223433196,-500.0,0.00016438,2]
[350936924,1738223433206,-686.41,0.00016438,2]
[350936925,1738223433215,-604.98630001,0.00016438,2]
[350936927,1738223433225,-500.0,0.00016438,2]
[350936929,1738223433235,-500.0,0.00016438,2]
[350936931,1738223433244,-901.84,0.00016438,2]
[350936933,1738223433254,-670.07,0.00016438,2]
[350936935,1738223433263,-548.98,0.00016438,2]
[350936937,1738223433273,-500.0,0.00016438,2]
[350936939,1738223433282,-500.0,0.00016438,2]
[350936941,1738223433292,-561.63,0.00016438,2]
[350936943,1738223433301,-490.5395889,0.00016438,2]
[350936945,1738223433311,-1600.68,0.00016438,2]
[350936947,1738223433320,-4259.83,0.00016438,2]
[350936961,1738223433459,-1252.06,0.00016438,2]
[350936963,1738223433470,-2536.89,0.00016438,2]
[350936965,1738223433479,-500.0,0.00016438,2]
[350936967,1738223433489,-500.0,0.00016438,2]
[350936969,1738223433498,-500.0,0.00016438,2]
[350936971,1738223433509,-937.5,0.00016438,2]
[350936973,1738223433518,-761.09,0.00016438,2]
[350936975,1738223433527,-625.71,0.00016438,2]
[350936977,1738223433536,-500.0,0.00016438,2]
[350936979,1738223433545,-500.0,0.00016438,2]
[350936981,1738223433555,-500.0,0.00016438,2]
[350936983,1738223433564,-1130.54,0.00016438,2]
[350936985,1738223433574,-500.0,0.00016438,2]
[350936987,1738223433583,-500.0,0.00016438,2]
[350936989,1738223433593,-575.46,0.00016438,2]
[350936991,1738223433602,-500.0,0.00016438,2]
[350936993,1738223433611,-500.0,0.00016438,2]
[350936995,1738223433620,-500.0,0.00016438,2]
[350936997,1738223433629,-666.57,0.00016438,2]
[350936999,1738223433638,-10753.13,0.00016438,2]
[350937000,1738223433647,-906.16,0.00016438,2]
[350937002,1738223433657,-629.52,0.00016438,2]
[350937004,1738223433666,-1352.79,0.00016438,2]
[350937006,1738223433676,-500.0,0.00016438,2]
[350937008,1738223433685,-500.0,0.00016575,2]
[350937010,1738223433694,-500.0,0.00016575,2]
[350937012,1738223433704,-2368.31,0.00016575,2]
[350937014,1738223433714,-500.0,0.00016575,2]
[350937016,1738223433723,-686.41,0.00016575,2]
[350937017,1738223433732,-500.0,0.00016575,2]
[350937018,1738223433742,-500.0,0.00016575,2]
[350937019,1738223433752,-901.84,0.00016575,2]
[350937020,1738223433761,-670.07,0.00016575,2]
[350937021,1738223433771,-548.98,0.00016575,2]
[350937022,1738223433780,-500.0,0.00016575,2]
[350937023,1738223433790,-500.0,0.00016575,2]
[350937024,1738223433799,-561.63,0.00016575,2]
[350937025,1738223433808,-1600.68,0.00016575,2]
[350937026,1738223433818,-4259.83,0.00016575,2]
[350937027,1738223433827,-1252.06,0.00016575,2]
[350937028,1738223433837,-2536.89,0.00016575,2]
[350937029,1738223433846,-500.0,0.00016575,2]
[350937030,1738223433856,-500.0,0.00016575,2]
[350937031,1738223433865,-500.0,0.00016575,2]
[350937032,1738223433874,-937.5,0.00016575,2]
[350937033,1738223433884,-761.09,0.00016575,2]
[350937034,1738223433893,-625.71,0.00016575,2]
[350937035,1738223433903,-500.0,0.00016575,2]
[350937036,1738223433913,-500.0,0.00016575,2]
[350937037,1738223433922,-500.0,0.00016575,2]
[350937038,1738223433931,-1130.54,0.00016575,2]
[350937039,1738223433941,-500.0,0.00016575,2]
[350937040,1738223433950,-500.0,0.00016575,2]
[350937041,1738223433959,-575.46,0.00016575,2]
[350937042,1738223433969,-500.0,0.00016575,2]
[350937043,1738223433979,-500.0,0.00016575,2]
[350937044,1738223433989,-500.0,0.00016575,2]
[350937045,1738223433998,-666.57,0.00016575,2]
[350937046,1738223434008,-10753.13,0.00016575,2]
[350937047,1738223434018,-906.16,0.00016575,2]
[350937048,1738223434027,-629.52,0.00016575,2]
[350937049,1738223434037,-1352.79,0.00016575,2]
[350937050,1738223434046,-500.0,0.00016575,2]
[350937051,1738223434059,-357.395,0.00016584,2]
[350937052,1738223434069,-799.87,0.000166,2]
[350937053,1738223434079,-300.0,0.000167,6]
[350937054,1738223434089,-500.0,0.00016709,2]
[350937055,1738223434099,-500.0,0.00016709,2]
[350937056,1738223434109,-500.0,0.00016709,2]
[350937057,1738223434119,-500.0,0.00016709,2]
[350937058,1738223434129,-489.6505793,0.00016709,2]
[350937059,1738223434143,-500.0,0.00016709,2]
[350937060,1738223434153,-500.0,0.00016709,2]
[350937061,1738223434164,-606.38579873,0.00016709,2]
[350937062,1738223434174,-500.0,0.00016712,2]
[350937063,1738223434184,-500.0,0.00016712,2]
[350937064,1738223434194,-2368.31,0.00016712,2]
[350937065,1738223434204,-500.0,0.00016712,2]
[350937066,1738223434215,-686.41,0.00016712,2]
[350937067,1738223434225,-500.0,0.00016712,2]
[350937068,1738223434234,-500.0,0.00016712,2]
[350937069,1738223434244,-901.84,0.00016712,2]
[350937070,1738223434254,-670.07,0.00016712,2]
[350937071,1738223434264,-548.98,0.00016712,2]
[350937072,1738223434273,-500.0,0.00016712,2]
[350937073,1738223434283,-500.0,0.00016712,2]
[350937074,1738223434293,-561.63,0.00016712,2]
[350937075,1738223434302,-1600.68,0.00016712,2]
[350937076,1738223434312,-4259.83,0.00016712,2]
[350937077,1738223434322,-1252.06,0.00016712,2]
[350937078,1738223434331,-2536.89,0.00016712,2]
[350937079,1738223434341,-500.0,0.00016712,2]
[350937080,1738223434351,-500.0,0.00016712,2]
[350937081,1738223434360,-500.0,0.00016712,2]
[350937082,1738223434370,-937.5,0.00016712,2]
[350937083,1738223434379,-761.09,0.00016712,2]
[350937084,1738223434389,-625.71,0.00016712,2]
[350937085,1738223434399,-500.0,0.00016712,2]
[350937086,1738223434421,-500.0,0.00016712,2]
[350937087,1738223434432,-500.0,0.00016712,2]
[350937088,1738223434443,-1130.54,0.00016712,2]
[350937089,1738223434453,-500.0,0.00016712,2]
[350937090,1738223434463,-638.82497621,0.00016712,2]
[350937091,1738223434473,-575.46,0.00016712,2]
[350937092,1738223434483,-500.0,0.00016712,2]
[350937093,1738223434493,-500.0,0.00016712,2]
[350937094,1738223434503,-500.0,0.00016712,2]
[350937095,1738223434513,-666.57,0.00016712,2]
[350937096,1738223434524,-10753.13,0.00016712,2]
[350937097,1738223434534,-906.16,0.00016712,2]
[350937098,1738223434543,-629.52,0.00016712,2]
[350937099,1738223434554,-1352.79,0.00016712,2]
[350937100,1738223434564,-500.0,0.00016712,2]
[350937101,1738223434574,-537.0,0.00016737,2]
[350937102,1738223434584,-2047.0,0.00016737,2]
[350937103,1738223434594,-2303.0,0.00016737,2]
[350937104,1738223434604,-150.0,0.00016737,2]
[350937105,1738223434614,-1002.59454427,0.00016778,2]
[350937106,1738223434623,-151.0,0.00016849,2]
[350937107,1738223434633,-500.0,0.00016849,2]
[350937108,1738223434643,-151.0,0.00016849,2]
[350937109,1738223434653,-175.659344,0.00016849,2]
[350937110,1738223434665,-151.0,0.00016849,2]
[350937111,1738223434674,-500.0,0.00016849,2]
[350937112,1738223434684,-151.0,0.00016849,2]
[350937113,1738223434693,-151.0,0.00016849,2]
[350937114,1738223434703,-2368.31,0.00016849,2]
[350937115,1738223434712,-151.0,0.00016849,2]
[350937116,1738223434722,-500.0,0.00016849,2]
[350937117,1738223434731,-151.0,0.00016849,2]
[350937118,1738223434741,-686.41,0.00016849,2]
[350937119,1738223434751,-500.0,0.00016849,2]
[350937120,1738223434761,-500.0,0.00016849,2]
[350937121,1738223434770,-901.84,0.00016849,2]
[350937122,1738223434780,-670.07,0.00016849,2]
[350937123,1738223434790,-548.98,0.00016849,2]
[350937124,1738223434799,-500.0,0.00016849,2]
[350937125,1738223434809,-151.0,0.00016849,2]
[350937126,1738223434819,-500.0,0.00016849,2]
[350937127,1738223434828,-151.0,0.00016849,2]
[350937128,1738223434838,-561.63,0.00016849,2]
[350937129,1738223434847,-151.0,0.00016849,2]
[350937130,1738223434857,-151.0,0.00016849,2]
[350937131,1738223434866,-1600.68,0.00016849,2]
[350937132,1738223434876,-4259.83,0.00016849,2]
[350937133,1738223434886,-151.0,0.00016849,2]
[350937134,1738223434896,-1252.06,0.00016849,2]
[350937135,1738223434906,-2536.89,0.00016849,2]
[350937136,1738223434917,-151.0,0.00016849,2]
[350937137,1738223434927,-500.0,0.00016849,2]
[350937138,1738223434936,-500.0,0.00016849,2]
[350937139,1738223434946,-500.0,0.00016849,2]
[350937140,1738223434955,-152.052962,0.00016849,2]
[350937141,1738223434965,-151.0,0.00016849,2]
[350937142,1738223434975,-937.5,0.00016849,2]
[350937143,1738223434985,-761.09,0.00016849,2]
[350937144,1738223434994,-625.71,0.00016849,2]
[350937145,1738223435003,-151.0,0.00016849,2]
[350937146,1738223435013,-500.0,0.00016849,2]
[350937147,1738223435022,-500.0,0.00016849,2]
[350937148,1738223435032,-500.0,0.00016849,2]
[350937149,1738223435042,-1130.54,0.00016849,2]
[350937150,1738223435058,-500.0,0.00016849,2]
[350937151,1738223435067,-151.0,0.00016849,2]
[350937152,1738223435077,-575.46,0.00016849,2]
[350937153,1738223435087,-500.0,0.00016849,2]
[350937154,1738223435097,-500.0,0.00016849,2]
[350937155,1738223435107,-500.0,0.00016849,2]
[350937156,1738223435117,-666.57,0.00016849,2]
[350937157,1738223435127,-10753.13,0.00016849,2]
[350937158,1738223435138,-906.16,0.00016849,2]
[350937159,1738223435148,-629.52,0.00016849,2]
[350937160,1738223435157,-1352.79,0.00016849,2]
[350937161,1738223435167,-500.0,0.00016849,2]
[350937162,1738223435176,-151.0,0.00016849,2]
[350937163,1738223435186,-154.0,0.00016874,2]
[350937164,1738223435195,-154.0,0.00016874,2]
[350937165,1738223435206,-321.40019329,0.00016898,2]
[350937166,1738223435216,-500.0,0.00016898,2]
[350937167,1738223435226,-160.0,0.00016899,2]
[350937168,1738223435236,-98217.450575,0.00016899,5]
[350937169,1738223435245,-179543.80995421,0.000169,3]
[350937170,1738223435256,-151.0,0.000169,2]
[350937171,1738223435266,-151.0,0.000169,2]
[350937172,1738223435276,-151.0,0.000169,2]
[350937173,1738223435286,-151.0,0.000169,2]
[350937174,1738223435296,-151.0,0.000169,2]
[350937175,1738223435306,-151.0,0.000169,2]
[350937176,1738223435315,-151.0,0.000169,2]
[350937177,1738223435325,-151.0,0.000169,2]
[350937178,1738223435334,-151.0,0.000169,2]
[350937179,1738223435343,-500.0,0.00016906,2]
[350937180,1738223435353,-2500.0,0.0001696,2]
[350937181,1738223435362,-2500.0,0.00016968,2]
[350937182,1738223435371,-1200.0,0.00016975,2]
[350937183,1738223435380,-2500.0,0.00016977,2]
[350937184,1738223435389,-13249.6116026,0.00016978,2]
[350937185,1738223435399,-208.607691,0.00016985,2]
[350937186,1738223435409,-160.0,0.00016985,2]
[350937187,1738223435421,-500.0,0.00016986,2]
[350937188,1738223435430,-151.0,0.00016986,2]
[350937189,1738223435440,-500.0,0.00016986,2]
[350937190,1738223435450,-151.0,0.00016986,2]
[350937191,1738223435460,-151.0,0.00016986,2]
[350937192,1738223435470,-2500.0,0.00016986,2]
[350937193,1738223435479,-500.0,0.00016986,2]
[350937194,1738223435489,-151.0,0.00016986,2]
[350937195,1738223435499,-217.704012,0.00016986,2]
[350937196,1738223435508,-2368.31,0.00016986,2]
[350937197,1738223435518,-500.0,0.00016986,2]
[350937198,1738223435528,-151.0,0.00016986,2]
[350937199,1738223435538,-686.41,0.00016986,2]
[350937200,1738223435549,-500.0,0.00016986,2]
[350937201,1738223435559,-500.0,0.00016986,2]
[350937202,1738223435568,-901.84,0.00016986,2]
[350937203,1738223435578,-670.07,0.00016986,2]
[350937204,1738223435588,-548.98,0.00016986,2]
[350937205,1738223435597,-500.0,0.00016986,2]
[350937206,1738223435607,-224.101412,0.00016986,2]
[350937207,1738223435617,-500.0,0.00016986,2]
[350937208,1738223435626,-151.0,0.00016986,2]
[350937209,1738223435636,-561.63,0.00016986,2]
[350937210,1738223435645,-151.0,0.00016986,2]
[350937211,1738223435655,-1600.68,0.00016986,2]
[350937212,1738223435665,-4259.83,0.00016986,2]
[350937213,1738223435674,-1252.06,0.00016986,2]
[350937214,1738223435685,-2536.89,0.00016986,2]
[350937215,1738223435694,-500.0,0.00016986,2]
[350937216,1738223435703,-500.0,0.00016986,2]
[350937217,1738223435713,-500.0,0.00016986,2]
[350937218,1738223435722,-500.0,0.00016986,2]
[350937219,1738223435732,-937.5,0.00016986,2]
[350937220,1738223435741,-761.09,0.00016986,2]
[350937221,1738223435750,-625.71,0.00016986,2]
[350937222,1738223435760,-500.0,0.00016986,2]
[350937223,1738223435770,-500.0,0.00016986,2]
[350937224,1738223435779,-500.0,0.00016986,2]
[350937225,1738223435789,-1130.54,0.00016986,2]
[350937226,1738223435798,-500.0,0.00016986,2]
[350937227,1738223435808,-154.001899,0.00016986,2]
[350937228,1738223435817,-575.46,0.00016986,2]
[350937229,1738223435826,-500.0,0.00016986,2]
[350937230,1738223435835,-500.0,0.00016986,2]
[350937231,1738223435846,-500.0,0.00016986,2]
[350937232,1738223435855,-666.57,0.00016986,2]
[350937233,1738223435864,-10753.13,0.00016986,2]
[350937234,1738223435874,-906.16,0.00016986,2]
[350937235,1738223435883,-629.52,0.00016986,2]
[350937236,1738223435893,-1352.79,0.00016986,2]
[350937237,1738223435902,-500.0,0.00016986,2]
[350937238,1738223435912,-151.0,0.00016986,2]